[Event "*** SCC Grand Prix: Titled Tuesday Blitz"]
[Site "Chess.com"]
[Date "2020.08.11"]
[Round "5"]
[White "Khazieva_Elza"]
[Black "Ranindu2003"]
[Result "1-0"]
[WhiteElo "2346"]
[BlackElo "2601"]
[TimeControl "180+1"]
[EndTime "10:56:13 PDT"]
[Termination "Khazieva_Elza won by resignation"]

1. e4 {[%clk 0:03:00.9]} 1... c5 {[%clk 0:02:59.4]} 2. Nf3 {[%clk 0:03:00.8]}
2... Nc6 {[%clk 0:02:59.5]} 3. d3 {[%clk 0:03:00.9]} 3... g6 {[%clk 0:02:56.6]}
4. g3 {[%clk 0:03:00.8]} 4... Bg7 {[%clk 0:02:56.8]} 5. Bg2 {[%clk 0:03:00.5]}
5... d6 {[%clk 0:02:56.5]} 6. O-O {[%clk 0:03:00.4]} 6... Nf6 {[%clk 0:02:56.8]}
7. Re1 {[%clk 0:03:00.4]} 7... O-O {[%clk 0:02:56.5]} 8. e5 {[%clk 0:03:00.4]}
8... dxe5 {[%clk 0:02:55.1]} 9. Nxe5 {[%clk 0:03:01.3]} 9... Nxe5 {[%clk
0:02:39.2]} 10. Rxe5 {[%clk 0:03:02.2]} 10... Ng4 {[%clk 0:02:39.4]} 11. Re1
{[%clk 0:03:00]} 11... Bd4 {[%clk 0:02:35.5]} 12. Rf1 {[%clk 0:02:59.7]} 12...
Qd6 {[%clk 0:02:25]} 13. Nd2 {[%clk 0:02:54.3]} 13... Rd8 {[%clk 0:02:00]} 14.
Nc4 {[%clk 0:02:26.4]} 14... Qf6 {[%clk 0:01:55.4]} 15. Qe2 {[%clk 0:02:02.9]}
15... Ne5 {[%clk 0:01:38.2]} 16. Nxe5 {[%clk 0:01:24.3]} 16... Bxe5 {[%clk
0:01:39.1]} 17. Rb1 {[%clk 0:01:13]} 17... Rb8 {[%clk 0:01:28.5]} 18. Re1 {[%clk
0:01:12.4]} 18... Bd6 {[%clk 0:01:28.5]} 19. b3 {[%clk 0:01:09]} 19... Qg7
{[%clk 0:01:15.5]} 20. Bb2 {[%clk 0:01:07.9]} 20... f6 {[%clk 0:01:16.2]} 21.
Rbd1 {[%clk 0:00:54]} 21... e5 {[%clk 0:01:15.1]} 22. c3 {[%clk 0:00:42.5]}
22... b6 {[%clk 0:00:45.4]} 23. d4 {[%clk 0:00:41.6]} 23... Bf5 {[%clk
0:00:44.4]} 24. Bd5+ {[%clk 0:00:29.1]} 24... Kh8 {[%clk 0:00:43.8]} 25. Be4
{[%clk 0:00:28.3]} 25... Bh3 {[%clk 0:00:40.9]} 26. dxe5 {[%clk 0:00:17]} 26...
Bxe5 {[%clk 0:00:40.5]} 27. f4 {[%clk 0:00:15.6]} 27... Bc7 {[%clk 0:00:38.3]}
28. Bg2 {[%clk 0:00:13]} 28... Bxg2 {[%clk 0:00:33.7]} 29. Qxg2 {[%clk
0:00:12.7]} 29... h5 {[%clk 0:00:24.3]} 30. c4 {[%clk 0:00:12.6]} 30... Rf8
{[%clk 0:00:20.7]} 31. Qc6 {[%clk 0:00:11.7]} 31... Rbc8 {[%clk 0:00:13.7]} 32.
Rd7 {[%clk 0:00:10.3]} 32... Rf7 {[%clk 0:00:14.1]} 33. Rxf7 {[%clk 0:00:04.1]}
33... Qxf7 {[%clk 0:00:15]} 34. Bxf6+ {[%clk 0:00:04.1]} 34... Kg8 {[%clk
0:00:15]} 35. Bc3 {[%clk 0:00:04.2]} 35... Rd8 {[%clk 0:00:10.7]} 36. Qe4 {[%clk
0:00:03.3]} 36... Bd6 {[%clk 0:00:09.9]} 37. Qf3 {[%clk 0:00:03.1]} 37... Bf8
{[%clk 0:00:10]} 38. Qc6 {[%clk 0:00:02.7]} 38... Bg7 {[%clk 0:00:10.3]} 39.
Bxg7 {[%clk 0:00:02.7]} 39... Kxg7 {[%clk 0:00:11.2]} 40. Re2 {[%clk 0:00:02.2]}
40... Rd1+ {[%clk 0:00:10.6]} 41. Kf2 {[%clk 0:00:02.7]} 41... Rd8 {[%clk
0:00:10.2]} 42. Qe6 {[%clk 0:00:02.8]} 42... Qf8 {[%clk 0:00:10.1]} 43. Qe5+
{[%clk 0:00:02.9]} 43... Kh6 {[%clk 0:00:09.8]} 44. Qe7 {[%clk 0:00:03]} 44...
Qg8 {[%clk 0:00:09.3]} 45. Qg5+ {[%clk 0:00:02.9]} 45... Kh7 {[%clk 0:00:09.1]}
46. Re7+ {[%clk 0:00:03.5]} 46... Kh8 {[%clk 0:00:09.7]} 47. Qf6+ {[%clk
0:00:03.7]} 1-0

[Event "*** SCC Grand Prix: Titled Tuesday Blitz"]
[Site "Chess.com"]
[Date "2020.08.11"]
[Round "5"]
[White "evgenyermolaev"]
[Black "gusmaster2262"]
[Result "1-0"]
[WhiteElo "2483"]
[BlackElo "2225"]
[TimeControl "180+1"]
[EndTime "10:56:13 PDT"]
[Termination "evgenyermolaev won on time"]

1. d4 {[%clk 0:03:00.9]} 1... Nf6 {[%clk 0:02:59.6]} 2. Nc3 {[%clk 0:02:59.6]}
2... d5 {[%clk 0:02:57.7]} 3. e4 {[%clk 0:02:59.6]} 3... dxe4 {[%clk 0:02:56.2]}
4. Bg5 {[%clk 0:02:59.5]} 4... Nbd7 {[%clk 0:02:48.5]} 5. Qe2 {[%clk 0:02:56.7]}
5... g6 {[%clk 0:02:42]} 6. O-O-O {[%clk 0:02:53.9]} 6... Bg7 {[%clk 0:02:41]}
7. f3 {[%clk 0:02:48.4]} 7... exf3 {[%clk 0:02:23.6]} 8. Nxf3 {[%clk 0:02:49.3]}
8... O-O {[%clk 0:02:22.9]} 9. h4 {[%clk 0:02:49.4]} 9... h6 {[%clk 0:02:13.9]}
10. Bf4 {[%clk 0:02:43.1]} 10... c6 {[%clk 0:02:08.9]} 11. Ne5 {[%clk
0:02:29.7]} 11... Nd5 {[%clk 0:02:01.6]} 12. Nxd5 {[%clk 0:02:14.7]} 12... cxd5
{[%clk 0:02:01.4]} 13. Qe3 {[%clk 0:01:42.8]} 13... Nxe5 {[%clk 0:01:51.2]} 14.
dxe5 {[%clk 0:01:43.7]} 14... Bg4 {[%clk 0:01:36.2]} 15. Rd4 {[%clk 0:01:31.4]}
15... h5 {[%clk 0:01:31.9]} 16. Be2 {[%clk 0:01:21.3]} 16... Bf5 {[%clk
0:01:23.8]} 17. g4 {[%clk 0:01:18.2]} 17... hxg4 {[%clk 0:01:21.3]} 18. h5
{[%clk 0:01:16.5]} 18... Rc8 {[%clk 0:01:19.5]} 19. c3 {[%clk 0:00:59.7]} 19...
Qa5 {[%clk 0:01:11.8]} 20. a3 {[%clk 0:00:56.2]} 20... Rc6 {[%clk 0:00:51.4]}
21. h6 {[%clk 0:00:53.2]} 21... Rfc8 {[%clk 0:00:45.1]} 22. c4 {[%clk
0:00:26.4]} 22... Qa4 {[%clk 0:00:31]} 23. Qc3 {[%clk 0:00:20.6]} 23... Bf8
{[%clk 0:00:25.1]} 24. h7+ {[%clk 0:00:19.4]} 24... Kh8 {[%clk 0:00:23.8]} 25.
e6 {[%clk 0:00:19.9]} 25... f6 {[%clk 0:00:21.3]} 26. Bh6 {[%clk 0:00:11.6]}
26... Bxh6+ {[%clk 0:00:17.5]} 27. Rxh6 {[%clk 0:00:12.2]} 27... b5 {[%clk
0:00:16.2]} 28. Kd2 {[%clk 0:00:09.2]} 28... b4 {[%clk 0:00:15.9]} 29. axb4
{[%clk 0:00:08.7]} 29... Rb6 {[%clk 0:00:11.5]} 30. c5 {[%clk 0:00:06.5]} 30...
Rbb8 {[%clk 0:00:08.5]} 31. Rh1 {[%clk 0:00:03.6]} 31... a5 {[%clk 0:00:08.2]}
32. Rc1 {[%clk 0:00:02.5]} 32... axb4 {[%clk 0:00:06.8]} 33. Qe3 {[%clk
0:00:02.7]} 33... Qc6 {[%clk 0:00:06.6]} 34. Bd3 {[%clk 0:00:01.7]} 34... b3
{[%clk 0:00:06.4]} 35. Bxf5 {[%clk 0:00:01.7]} 35... gxf5 {[%clk 0:00:06.4]} 36.
Qf4 {[%clk 0:00:01.8]} 36... Rc7 {[%clk 0:00:04.7]} 37. Qxf5 {[%clk 0:00:02.1]}
37... Qb5 {[%clk 0:00:04]} 38. Qxg4 {[%clk 0:00:01.5]} 38... Qa5+ {[%clk
0:00:03.8]} 39. Rc3 {[%clk 0:00:01.7]} 39... Rxc5 {[%clk 0:00:03.5]} 40. Rd3
{[%clk 0:00:02]} 40... Rxc3 {[%clk 0:00:03.4]} 41. Rxc3 {[%clk 0:00:02.9]} 41...
d4 {[%clk 0:00:02.8]} 42. Qxd4 {[%clk 0:00:02.9]} 42... Rd8 {[%clk 0:00:03.4]}
43. Ke3 {[%clk 0:00:02]} 43... Rxd4 {[%clk 0:00:01.9]} 44. Rc8+ {[%clk
0:00:02.1]} 1-0

[Event "*** SCC Grand Prix: Titled Tuesday Blitz"]
[Site "Chess.com"]
[Date "2020.08.11"]
[Round "5"]
[White "StephenDedalus83"]
[Black "realmadridtv"]
[Result "0-1"]
[WhiteElo "2771"]
[BlackElo "2468"]
[TimeControl "180+1"]
[EndTime "10:56:14 PDT"]
[Termination "realmadridtv won by resignation"]

1. e4 {[%clk 0:03:00.9]} 1... e5 {[%clk 0:02:58.9]} 2. Nf3 {[%clk 0:03:00.6]}
2... Nc6 {[%clk 0:02:59.4]} 3. Bb5 {[%clk 0:03:00.2]} 3... a6 {[%clk 0:02:59.7]}
4. Ba4 {[%clk 0:02:59.9]} 4... Nf6 {[%clk 0:02:59.8]} 5. O-O {[%clk 0:02:59.2]}
5... Nxe4 {[%clk 0:02:59.3]} 6. d4 {[%clk 0:02:58.3]} 6... b5 {[%clk 0:02:59.3]}
7. Bb3 {[%clk 0:02:58.9]} 7... Be7 {[%clk 0:02:56.6]} 8. Re1 {[%clk 0:02:51.9]}
8... d5 {[%clk 0:02:56.1]} 9. dxe5 {[%clk 0:02:46.1]} 9... Be6 {[%clk
0:02:56.6]} 10. Nbd2 {[%clk 0:02:45]} 10... O-O {[%clk 0:02:55]} 11. c3 {[%clk
0:02:35.9]} 11... Nc5 {[%clk 0:02:54.9]} 12. Bc2 {[%clk 0:02:34.6]} 12... d4
{[%clk 0:02:55.5]} 13. Nb3 {[%clk 0:02:31.5]} 13... dxc3 {[%clk 0:02:48.9]} 14.
bxc3 {[%clk 0:02:30.4]} 14... Qxd1 {[%clk 0:02:46.9]} 15. Rxd1 {[%clk
0:02:30.3]} 15... Rad8 {[%clk 0:02:46.1]} 16. Be3 {[%clk 0:02:28.2]} 16... Na4
{[%clk 0:02:43.5]} 17. Bd2 {[%clk 0:02:16.5]} 17... Bg4 {[%clk 0:02:38.8]} 18.
Re1 {[%clk 0:02:12.8]} 18... Bxf3 {[%clk 0:02:32.7]} 19. gxf3 {[%clk 0:02:12]}
19... Ba3 {[%clk 0:02:13.5]} 20. Re3 {[%clk 0:02:01]} 20... Nb6 {[%clk
0:02:01.3]} 21. Bc1 {[%clk 0:01:46]} 21... Bxc1 {[%clk 0:01:56.1]} 22. Rxc1
{[%clk 0:01:44.8]} 22... Nc4 {[%clk 0:01:56.8]} 23. Re2 {[%clk 0:01:41]} 23...
N6xe5 {[%clk 0:01:55]} 24. Kg2 {[%clk 0:01:39.9]} 24... g5 {[%clk 0:01:34.9]}
25. Nc5 {[%clk 0:01:36.4]} 25... a5 {[%clk 0:01:19.6]} 26. Rce1 {[%clk
0:01:35.1]} 26... f6 {[%clk 0:01:13.3]} 27. Ne6 {[%clk 0:01:34.1]} 27... Rd6
{[%clk 0:01:05.4]} 28. Nxf8 {[%clk 0:01:33.4]} 28... Kxf8 {[%clk 0:01:06.3]} 29.
Bxh7 {[%clk 0:01:33]} 29... c5 {[%clk 0:00:39.9]} 30. Bc2 {[%clk 0:01:32.1]}
30... b4 {[%clk 0:00:36.4]} 31. cxb4 {[%clk 0:01:30.2]} 31... axb4 {[%clk
0:00:36.9]} 32. Rc1 {[%clk 0:01:27.9]} 32... Na3 {[%clk 0:00:24.6]} 33. Be4
{[%clk 0:01:20.1]} 33... c4 {[%clk 0:00:23.2]} 34. Rb2 {[%clk 0:01:19.6]} 34...
Rb6 {[%clk 0:00:12.7]} 35. Kf1 {[%clk 0:01:18.8]} 35... Ke7 {[%clk 0:00:12.6]}
36. Ke2 {[%clk 0:01:18.4]} 36... Rb5 {[%clk 0:00:13]} 37. Rd2 {[%clk 0:01:14.9]}
37... c3 {[%clk 0:00:12.7]} 38. Rd5 {[%clk 0:01:14]} 38... Rb6 {[%clk
0:00:12.9]} 39. Rc5 {[%clk 0:01:08.1]} 39... Ke6 {[%clk 0:00:12.5]} 40. Bd5+
{[%clk 0:01:04.3]} 40... Kd6 {[%clk 0:00:12.1]} 41. Ra5 {[%clk 0:01:04.2]} 41...
Nec4 {[%clk 0:00:11.1]} 42. Bxc4 {[%clk 0:01:03.5]} 42... Nxc4 {[%clk 0:00:12]}
43. Ra8 {[%clk 0:01:03.4]} 43... Nd2 {[%clk 0:00:10.1]} 44. f4 {[%clk 0:01:01]}
44... gxf4 {[%clk 0:00:09.9]} 45. Kd3 {[%clk 0:01:00.6]} 45... Kc5 {[%clk
0:00:08.5]} 46. h4 {[%clk 0:00:59.5]} 46... Rd6+ {[%clk 0:00:07.7]} 47. Kc2
{[%clk 0:00:59.4]} 47... Kd4 {[%clk 0:00:08]} 48. h5 {[%clk 0:00:57.8]} 48... f5
{[%clk 0:00:08.4]} 49. Rh1 {[%clk 0:00:56.1]} 49... Ne4 {[%clk 0:00:06.8]} 50.
h6 {[%clk 0:00:55.6]} 50... Nxf2 {[%clk 0:00:06.8]} 51. Rh4 {[%clk 0:00:55.1]}
51... Kc4 {[%clk 0:00:05.1]} 52. Rc8+ {[%clk 0:00:50.5]} 52... Kb5 {[%clk
0:00:04]} 53. a4+ {[%clk 0:00:47.7]} 53... Kxa4 {[%clk 0:00:03.6]} 54. Ra8+
{[%clk 0:00:46.8]} 54... Kb5 {[%clk 0:00:03.4]} 55. Rxf4 {[%clk 0:00:46.1]}
55... Rd2+ {[%clk 0:00:03.5]} 56. Kb1 {[%clk 0:00:46]} 56... Nd3 {[%clk
0:00:03.8]} 57. Rxf5+ {[%clk 0:00:45.4]} 57... Kc4 {[%clk 0:00:04.4]} 58. Rc8+
{[%clk 0:00:43.8]} 58... Kb3 {[%clk 0:00:05.1]} 59. Rf1 {[%clk 0:00:43.6]} 59...
c2+ {[%clk 0:00:04.5]} 60. Ka1 {[%clk 0:00:42.3]} 60... Rd1+ {[%clk 0:00:04.4]}
0-1

[Event "*** SCC Grand Prix: Titled Tuesday Blitz"]
[Site "Chess.com"]
[Date "2020.08.11"]
[Round "5"]
[White "arminmusovic"]
[Black "hongnhung1234"]
[Result "1-0"]
[WhiteElo "2490"]
[BlackElo "2260"]
[TimeControl "180+1"]
[EndTime "10:56:17 PDT"]
[Termination "arminmusovic won by checkmate"]

1. a3 {[%clk 0:03:00.9]} 1... e5 {[%clk 0:02:57.4]} 2. Nc3 {[%clk 0:03:01.8]}
2... d5 {[%clk 0:02:57.3]} 3. d4 {[%clk 0:03:02.1]} 3... e4 {[%clk 0:02:55.4]}
4. Bf4 {[%clk 0:03:01.9]} 4... Nf6 {[%clk 0:02:53.4]} 5. Be5 {[%clk 0:03:02.2]}
5... c6 {[%clk 0:02:50.7]} 6. e3 {[%clk 0:03:01.3]} 6... Nbd7 {[%clk 0:02:49.2]}
7. Bg3 {[%clk 0:03:00.9]} 7... Be7 {[%clk 0:02:47.6]} 8. Nge2 {[%clk 0:03:00.5]}
8... O-O {[%clk 0:02:47.6]} 9. Nf4 {[%clk 0:03:01]} 9... Re8 {[%clk 0:02:47.5]}
10. Be2 {[%clk 0:03:01]} 10... Nf8 {[%clk 0:02:46.9]} 11. O-O {[%clk 0:03:01.3]}
11... Ng6 {[%clk 0:02:46.6]} 12. Nh5 {[%clk 0:03:01.2]} 12... Be6 {[%clk
0:02:38.6]} 13. h3 {[%clk 0:02:53.5]} 13... Qd7 {[%clk 0:02:35.9]} 14. Nf4
{[%clk 0:02:49.9]} 14... Nxf4 {[%clk 0:02:33.1]} 15. Bxf4 {[%clk 0:02:49.7]}
15... Rad8 {[%clk 0:02:24.6]} 16. f3 {[%clk 0:02:45.6]} 16... Bf5 {[%clk
0:02:14.2]} 17. Bh2 {[%clk 0:02:33.6]} 17... exf3 {[%clk 0:02:06.9]} 18. Bxf3
{[%clk 0:02:34]} 18... Bg6 {[%clk 0:01:59.2]} 19. Qd2 {[%clk 0:02:25.8]} 19...
Bd6 {[%clk 0:01:54.2]} 20. Bxd6 {[%clk 0:02:23.9]} 20... Qxd6 {[%clk 0:01:55.1]}
21. Rae1 {[%clk 0:02:24]} 21... Re7 {[%clk 0:01:51.5]} 22. Qf2 {[%clk
0:02:14.6]} 22... Rde8 {[%clk 0:01:47.9]} 23. Re2 {[%clk 0:02:15]} 23... b6
{[%clk 0:01:32.1]} 24. Rfe1 {[%clk 0:02:12.3]} 24... c5 {[%clk 0:01:14.3]} 25.
Qh4 {[%clk 0:02:12.1]} 25... cxd4 {[%clk 0:01:06.3]} 26. Qxd4 {[%clk 0:02:13]}
26... Re5 {[%clk 0:01:00.1]} 27. e4 {[%clk 0:01:58.1]} 27... Qc5 {[%clk
0:00:38.2]} 28. Qxc5 {[%clk 0:01:55.3]} 28... bxc5 {[%clk 0:00:39.1]} 29. exd5
{[%clk 0:01:53.6]} 29... Rxe2 {[%clk 0:00:38.6]} 30. Bxe2 {[%clk 0:01:46.1]}
30... Bxc2 {[%clk 0:00:37.7]} 31. Rc1 {[%clk 0:01:45.8]} 31... Bb3 {[%clk
0:00:29.9]} 32. Bb5 {[%clk 0:01:39.5]} 32... Rd8 {[%clk 0:00:26.6]} 33. Bc6
{[%clk 0:01:37.8]} 33... Kf8 {[%clk 0:00:16.9]} 34. Nb5 {[%clk 0:01:32.8]} 34...
Bxd5 {[%clk 0:00:15.5]} 35. Nxa7 {[%clk 0:01:29.3]} 35... Bxc6 {[%clk
0:00:14.5]} 36. Nxc6 {[%clk 0:01:30.2]} 36... Rd2 {[%clk 0:00:15.2]} 37. b4
{[%clk 0:01:25.8]} 37... cxb4 {[%clk 0:00:16.1]} 38. axb4 {[%clk 0:01:26.7]}
38... Nd5 {[%clk 0:00:16.1]} 39. Rc4 {[%clk 0:01:16.1]} 39... f6 {[%clk
0:00:12.7]} 40. b5 {[%clk 0:01:13.8]} 40... Ne3 {[%clk 0:00:12.5]} 41. Rd4
{[%clk 0:01:14.1]} 41... Rxg2+ {[%clk 0:00:11.4]} 42. Kh1 {[%clk 0:01:14.6]}
42... Rb2 {[%clk 0:00:11]} 43. Rd3 {[%clk 0:01:05.9]} 43... Nc4 {[%clk
0:00:09.1]} 44. Rd8+ {[%clk 0:01:04.7]} 44... Kf7 {[%clk 0:00:08.9]} 45. Rb8
{[%clk 0:01:05.6]} 45... Nd6 {[%clk 0:00:07.6]} 46. b6 {[%clk 0:01:04.8]} 46...
Ne4 {[%clk 0:00:07.4]} 47. b7 {[%clk 0:01:01.8]} 47... Ng3+ {[%clk 0:00:07.2]}
48. Kg1 {[%clk 0:01:01.7]} 48... Ne2+ {[%clk 0:00:07.4]} 49. Kf1 {[%clk
0:01:02]} 49... Ng3+ {[%clk 0:00:07.6]} 50. Ke1 {[%clk 0:01:02.5]} 50... Ne4
{[%clk 0:00:07.2]} 51. Nd8+ {[%clk 0:00:54.8]} 51... Kg6 {[%clk 0:00:06.9]} 52.
Rc8 {[%clk 0:00:54.8]} 52... Rb1+ {[%clk 0:00:05.3]} 53. Ke2 {[%clk 0:00:54.6]}
53... Rxb7 {[%clk 0:00:05.6]} 54. Nxb7 {[%clk 0:00:54.3]} 54... Ng5 {[%clk
0:00:06]} 55. h4 {[%clk 0:00:53.4]} 55... Ne6 {[%clk 0:00:05.6]} 56. Kf3 {[%clk
0:00:50.7]} 56... Nd4+ {[%clk 0:00:05.3]} 57. Kg3 {[%clk 0:00:48.9]} 57... Nf5+
{[%clk 0:00:05.2]} 58. Kh3 {[%clk 0:00:49.4]} 58... Kh5 {[%clk 0:00:05]} 59. Rc5
{[%clk 0:00:49.6]} 59... g6 {[%clk 0:00:04.9]} 60. Nd6 {[%clk 0:00:49.8]} 60...
Kh6 {[%clk 0:00:03.6]} 61. Nxf5+ {[%clk 0:00:49.6]} 61... gxf5 {[%clk 0:00:04]}
62. Rxf5 {[%clk 0:00:49.8]} 62... Kg6 {[%clk 0:00:04.9]} 63. Kg4 {[%clk
0:00:49.7]} 63... h5+ {[%clk 0:00:04.1]} 64. Rxh5 {[%clk 0:00:49.8]} 64... Kf7
{[%clk 0:00:05]} 65. Rf5 {[%clk 0:00:50.7]} 65... Kg6 {[%clk 0:00:04.8]} 66. Rf1
{[%clk 0:00:50.6]} 66... Kg7 {[%clk 0:00:03.9]} 67. Kh5 {[%clk 0:00:50.3]} 67...
Kh7 {[%clk 0:00:03.4]} 68. Rxf6 {[%clk 0:00:49.6]} 68... Kg7 {[%clk 0:00:04.3]}
69. Kg5 {[%clk 0:00:50.5]} 69... Kh7 {[%clk 0:00:04.5]} 70. Rg6 {[%clk
0:00:50.5]} 70... Kh8 {[%clk 0:00:04.3]} 71. Kf6 {[%clk 0:00:50.9]} 71... Kh7
{[%clk 0:00:05.2]} 72. Kf7 {[%clk 0:00:51.4]} 72... Kh8 {[%clk 0:00:06.1]} 73.
Rh6# {[%clk 0:00:52]} 1-0

[Event "*** SCC Grand Prix: Titled Tuesday Blitz"]
[Site "Chess.com"]
[Date "2020.08.11"]
[Round "5"]
[White "JonasHilwerda"]
[Black "Alindsay211"]
[Result "1-0"]
[WhiteElo "2214"]
[BlackElo "2330"]
[TimeControl "180+1"]
[EndTime "10:56:17 PDT"]
[Termination "JonasHilwerda won on time"]

1. d4 {[%clk 0:03:00.9]} 1... Nf6 {[%clk 0:02:59.2]} 2. Bf4 {[%clk 0:03:00.9]}
2... e6 {[%clk 0:02:56.1]} 3. Nd2 {[%clk 0:02:59.2]} 3... d5 {[%clk 0:02:55.8]}
4. e3 {[%clk 0:02:59.4]} 4... c5 {[%clk 0:02:53.6]} 5. c3 {[%clk 0:02:59.8]}
5... Nc6 {[%clk 0:02:53.1]} 6. Ngf3 {[%clk 0:03:00.3]} 6... Qb6 {[%clk
0:02:51.9]} 7. Qb3 {[%clk 0:02:51.9]} 7... c4 {[%clk 0:02:45.6]} 8. Qc2 {[%clk
0:02:42.9]} 8... Be7 {[%clk 0:02:40.3]} 9. e4 {[%clk 0:02:36.2]} 9... h6 {[%clk
0:02:36.3]} 10. e5 {[%clk 0:02:32.5]} 10... Nd7 {[%clk 0:02:32.1]} 11. Be2
{[%clk 0:02:28.6]} 11... Qc7 {[%clk 0:02:31.1]} 12. h4 {[%clk 0:02:23.6]} 12...
a6 {[%clk 0:02:23.1]} 13. h5 {[%clk 0:02:17.8]} 13... b5 {[%clk 0:02:22.4]} 14.
Rh3 {[%clk 0:02:17.8]} 14... b4 {[%clk 0:02:16.9]} 15. g4 {[%clk 0:02:05.9]}
15... bxc3 {[%clk 0:01:50.8]} 16. bxc3 {[%clk 0:02:06.8]} 16... Rb8 {[%clk
0:01:50.3]} 17. g5 {[%clk 0:01:54.8]} 17... hxg5 {[%clk 0:01:47.2]} 18. Bxg5
{[%clk 0:01:44]} 18... Bf8 {[%clk 0:01:45.5]} 19. Nh4 {[%clk 0:01:35.9]} 19...
Ndxe5 {[%clk 0:01:15]} 20. dxe5 {[%clk 0:01:34.8]} 20... Qxe5 {[%clk 0:01:13.1]}
21. Nhf3 {[%clk 0:01:15.7]} 21... Qd6 {[%clk 0:00:51.4]} 22. Bh4 {[%clk
0:01:13.1]} 22... e5 {[%clk 0:00:49.2]} 23. Rd1 {[%clk 0:01:11.8]} 23... Bxh3
{[%clk 0:00:48.2]} 24. Nxc4 {[%clk 0:01:10.4]} 24... Qe6 {[%clk 0:00:45.7]} 25.
Ng5 {[%clk 0:01:07.4]} 25... Qf5 {[%clk 0:00:38.8]} 26. Qa4 {[%clk 0:01:01.6]}
26... Qd7 {[%clk 0:00:33.9]} 27. Nxh3 {[%clk 0:00:43.1]} 27... f6 {[%clk
0:00:20.4]} 28. Ne3 {[%clk 0:00:39.2]} 28... d4 {[%clk 0:00:18.1]} 29. Bf3
{[%clk 0:00:30.9]} 29... Rc8 {[%clk 0:00:16.3]} 30. cxd4 {[%clk 0:00:27.7]}
30... Nxd4 {[%clk 0:00:15.6]} 31. Qxd7+ {[%clk 0:00:25.9]} 31... Kxd7 {[%clk
0:00:15]} 32. Bg4+ {[%clk 0:00:26.2]} 32... Kc7 {[%clk 0:00:13.6]} 33. Rc1+
{[%clk 0:00:25.3]} 33... Kb7 {[%clk 0:00:12.8]} 34. Bxc8+ {[%clk 0:00:24.5]}
34... Kb6 {[%clk 0:00:13.7]} 35. Nd5+ {[%clk 0:00:23.7]} 35... Ka7 {[%clk
0:00:12.5]} 36. Bg4 {[%clk 0:00:20.1]} 36... f5 {[%clk 0:00:11.4]} 37. Be2
{[%clk 0:00:19.1]} 37... g6 {[%clk 0:00:09.8]} 38. Bf6 {[%clk 0:00:18.5]} 38...
Bb4+ {[%clk 0:00:09.3]} 39. Nxb4 {[%clk 0:00:17.7]} 39... Rf8 {[%clk 0:00:08.3]}
40. Bxe5 {[%clk 0:00:17.2]} 40... Ne6 {[%clk 0:00:08.2]} 41. Nc6+ {[%clk
0:00:17.2]} 41... Kb6 {[%clk 0:00:07.8]} 42. Nd4 {[%clk 0:00:16]} 42... Nc5
{[%clk 0:00:06.1]} 43. Bd6 {[%clk 0:00:14.8]} 43... Re8 {[%clk 0:00:02.6]} 44.
Bxc5+ {[%clk 0:00:15]} 44... Kb7 {[%clk 0:00:03.5]} 45. hxg6 {[%clk 0:00:15.4]}
45... Kb8 {[%clk 0:00:04.4]} 46. Kd2 {[%clk 0:00:15.7]} 46... f4 {[%clk
0:00:03.9]} 47. Bd6+ {[%clk 0:00:16]} 47... Ka8 {[%clk 0:00:03.7]} 48. Bf3+
{[%clk 0:00:16.4]} 48... Ka7 {[%clk 0:00:03.5]} 49. Rb1 {[%clk 0:00:16.3]} 49...
a5 {[%clk 0:00:02.9]} 50. Nc6+ {[%clk 0:00:16.4]} 50... Ka6 {[%clk 0:00:03.3]}
51. Be2+ {[%clk 0:00:16.9]} 1-0

[Event "*** SCC Grand Prix: Titled Tuesday Blitz"]
[Site "Chess.com"]
[Date "2020.08.11"]
[Round "5"]
[White "mishikomchedlishvili"]
[Black "amintabatabaei"]
[Result "0-1"]
[WhiteElo "2812"]
[BlackElo "3031"]
[TimeControl "180+1"]
[EndTime "10:56:19 PDT"]
[Termination "amintabatabaei won by resignation"]

1. d4 {[%clk 0:03:00.9]} 1... Nf6 {[%clk 0:02:59.4]} 2. Bg5 {[%clk 0:03:00.5]}
2... d5 {[%clk 0:02:55.2]} 3. e3 {[%clk 0:02:59]} 3... e6 {[%clk 0:02:55]} 4. c4
{[%clk 0:02:51.7]} 4... h6 {[%clk 0:02:48.6]} 5. Bxf6 {[%clk 0:02:49.7]} 5...
Qxf6 {[%clk 0:02:49.5]} 6. Nc3 {[%clk 0:02:48.9]} 6... c6 {[%clk 0:02:41.3]} 7.
Nf3 {[%clk 0:02:44.7]} 7... Nd7 {[%clk 0:02:40.3]} 8. Bd3 {[%clk 0:02:40.1]}
8... Bd6 {[%clk 0:02:34.8]} 9. O-O {[%clk 0:02:38.7]} 9... O-O {[%clk
0:02:34.6]} 10. e4 {[%clk 0:02:29.5]} 10... dxc4 {[%clk 0:02:33.2]} 11. e5
{[%clk 0:02:25.7]} 11... Qd8 {[%clk 0:02:33.1]} 12. Bxc4 {[%clk 0:02:23.9]}
12... Be7 {[%clk 0:02:33.1]} 13. Qe2 {[%clk 0:02:21.6]} 13... b6 {[%clk
0:02:32.8]} 14. Qe4 {[%clk 0:02:20.4]} 14... Bb7 {[%clk 0:02:23.2]} 15. Bd3
{[%clk 0:02:20.3]} 15... g6 {[%clk 0:02:23.5]} 16. Qg4 {[%clk 0:02:18.5]} 16...
Kg7 {[%clk 0:02:14.7]} 17. Be4 {[%clk 0:02:11.4]} 17... Qb8 {[%clk 0:01:46.6]}
18. Rad1 {[%clk 0:02:01.8]} 18... b5 {[%clk 0:01:40.2]} 19. h4 {[%clk
0:01:55.8]} 19... a6 {[%clk 0:01:12.9]} 20. h5 {[%clk 0:01:45.5]} 20... g5
{[%clk 0:01:13]} 21. Bb1 {[%clk 0:01:42.6]} 21... c5 {[%clk 0:01:08.7]} 22. d5
{[%clk 0:01:35.7]} 22... Nxe5 {[%clk 0:01:08.8]} 23. Nxe5 {[%clk 0:01:34.6]}
23... Qxe5 {[%clk 0:01:09.7]} 24. Rfe1 {[%clk 0:01:32.5]} 24... Qf4 {[%clk
0:01:06.2]} 25. Qxf4 {[%clk 0:01:32.2]} 25... gxf4 {[%clk 0:01:07.1]} 26. dxe6
{[%clk 0:01:32.6]} 26... Rad8 {[%clk 0:01:07.8]} 27. exf7 {[%clk 0:01:27.3]}
27... Rxd1 {[%clk 0:01:00]} 28. Rxd1 {[%clk 0:01:27.2]} 28... Rd8 {[%clk
0:00:53.5]} 29. Rxd8 {[%clk 0:01:05.2]} 29... Bxd8 {[%clk 0:00:54.4]} 30. Bg6
{[%clk 0:01:04.9]} 30... Bf6 {[%clk 0:00:53.8]} 31. Kf1 {[%clk 0:00:39.8]} 31...
Bxc3 {[%clk 0:00:43.6]} 32. bxc3 {[%clk 0:00:39.3]} 32... Bd5 {[%clk 0:00:44.5]}
33. a3 {[%clk 0:00:28.5]} 33... Bxf7 {[%clk 0:00:43.4]} 34. Be4 {[%clk
0:00:27.6]} 34... Bxh5 {[%clk 0:00:39.4]} 35. Ke1 {[%clk 0:00:27.9]} 35... Bg6
{[%clk 0:00:32.5]} 36. Bb7 {[%clk 0:00:26.8]} 36... a5 {[%clk 0:00:32.9]} 37.
Kd2 {[%clk 0:00:27.5]} 37... Kf6 {[%clk 0:00:30.6]} 38. Bc6 {[%clk 0:00:23.1]}
38... b4 {[%clk 0:00:30.9]} 39. axb4 {[%clk 0:00:23.1]} 39... axb4 {[%clk
0:00:28.5]} 40. cxb4 {[%clk 0:00:21.8]} 40... cxb4 {[%clk 0:00:29.4]} 41. Kc1
{[%clk 0:00:20.9]} 41... Ke5 {[%clk 0:00:29.4]} 42. Kb2 {[%clk 0:00:21.2]} 42...
Bf7 {[%clk 0:00:29.3]} 43. g3 {[%clk 0:00:20.1]} 43... Bc4 {[%clk 0:00:23.3]}
44. Bf3 {[%clk 0:00:18.5]} 44... Bf7 {[%clk 0:00:19.7]} 45. Kc2 {[%clk 0:00:17]}
45... Kd4 {[%clk 0:00:11.8]} 46. Bg4 {[%clk 0:00:13.5]} 46... fxg3 {[%clk
0:00:09.5]} 47. fxg3 {[%clk 0:00:13.2]} 47... Ke3 {[%clk 0:00:10]} 48. Bd7
{[%clk 0:00:12.4]} 48... h5 {[%clk 0:00:03]} 49. g4 {[%clk 0:00:10.2]} 49... h4
{[%clk 0:00:03.3]} 50. g5 {[%clk 0:00:10.6]} 50... Kf4 {[%clk 0:00:03.5]} 51. g6
{[%clk 0:00:10.3]} 51... Bxg6+ {[%clk 0:00:03.9]} 52. Kb3 {[%clk 0:00:10.6]}
52... Bf5 {[%clk 0:00:04.3]} 53. Bc6 {[%clk 0:00:10.5]} 53... h3 {[%clk
0:00:04.8]} 0-1